fUSD/lending_fUSD_20250609
["ID","MTS","AMOUNT","RATE_DAILY","PERIOD"]
[365057246,1749431441014,-480.0,0.00018768,2]
[365057247,1749431441023,-480.0,0.00018768,2]
[365057248,1749431441033,-547.27,0.00018768,2]
[365057249,1749431441043,-480.0,0.00018768,2]
[365057250,1749431441052,-619.29,0.00018768,2]
[365057251,1749431441061,-480.0,0.00018768,2]
[365057252,1749431441070,-480.0,0.00018768,2]
[365057253,1749431441080,-480.0,0.00018768,2]
[365057254,1749431441089,-480.0,0.00018768,2]
[365057255,1749431441098,-480.0,0.00018768,2]
[365057256,1749431441108,-480.0,0.00018768,2]
[365057257,1749431441117,-480.0,0.00018768,2]
[365057258,1749431441127,-480.0,0.00018768,2]
[365057259,1749431441135,-480.0,0.00018768,2]
[365057260,1749431441145,-480.0,0.00018769,2]
[365057261,1749431441154,-460.0,0.00018769,2]
[365057262,1749431441164,-460.0,0.00018769,2]
[365057263,1749431441174,-480.0,0.00018769,2]
[365057264,1749431441183,-460.0,0.00018769,2]
[365057265,1749431441192,-480.0,0.00018769,2]
[365057266,1749431441202,-480.0,0.00018769,2]
[365057267,1749431441212,-460.0,0.00018769,2]
[365057268,1749431441222,-457.81962978,0.00018769,2]
[365057269,1749431441231,-480.0,0.00018769,2]
[365057270,1749431441241,-480.0,0.00018769,2]
[365057271,1749431441250,-460.0,0.00018769,2]
[365057272,1749431441259,-460.0,0.00018769,2]
[365057273,1749431441268,-480.0,0.00018769,2]
[365057274,1749431441278,-50.83764743,0.00018769,2]
[365057275,1749431441316,-429.16235257,0.00018769,2]
[365057276,1749431441326,-480.0,0.00018769,2]
[365057277,1749431441335,-380.0,0.00018769,2]
[365057278,1749431441344,-383.05015824,0.00018769,2]
[365057279,1749431441359,-76.94984176,0.00018769,2]
[365057280,1749431441369,-480.0,0.00018769,2]
[365057281,1749431441379,-460.0,0.00018769,2]
[365057282,1749431441388,-460.0,0.00018769,2]
[365057283,1749431441398,-460.0,0.00018769,2]
[365057284,1749431441408,-460.0,0.00018769,2]
[365057285,1749431441419,-480.0,0.00018769,2]
[365057286,1749431441428,-460.0,0.00018769,2]
[365057287,1749431441438,-460.0,0.00018769,2]
[365057288,1749431441447,-480.0,0.00018769,2]
[365057289,1749431441458,-460.0,0.00018769,2]
[365057290,1749431441467,-460.0,0.00018769,2]
[365057291,1749431441476,-480.0,0.00018769,2]
[365057292,1749431441485,-460.0,0.00018769,2]
[365057293,1749431441495,-398.29816778,0.00018769,2]
[365057294,1749431441504,-480.0,0.00018769,2]
[365057295,1749431441514,-480.0,0.00018769,2]
[365057296,1749431441524,-460.0,0.00018769,2]
[365057297,1749431441536,-109.11371596,0.00018769,2]
[365057298,1749431441548,-370.88628404,0.00018769,2]
[365057299,1749431441558,-380.0,0.00018769,2]
[365057300,1749431441567,-460.0,0.00018769,2]
[365057301,1749431441576,-460.0,0.00018769,2]
[365057302,1749431441585,-380.0,0.00018769,2]
[365057303,1749431441596,-149.11371596,0.00018769,2]
[365057305,1749431443260,-230.88628404,0.00018769,2]
[365057306,1749431443269,-228.47864796,0.00018769,2]
[365057307,1749431443375,-231.52135204,0.00018769,2]
[365057308,1749431443385,-263.95864796,0.00018769,2]
[365057309,1749431443397,-196.04135204,0.00018769,2]
[365057310,1749431443407,-361.04337896,0.00018769,2]
[365057311,1749431443418,-18.95662104,0.00018769,2]
[365057312,1749431443427,-460.0,0.00018769,2]
[365057313,1749431443436,-480.0,0.00018769,2]
[365057315,1749431443446,-480.0,0.00018769,2]
[365057317,1749431443455,-480.0,0.00018769,2]
[365057319,1749431443465,-1194.39,0.00018769,2]
[365057321,1749431443474,-265.38219022,0.00018769,2]
[365057323,1749431443486,-214.61780978,0.00018769,2]
[365057325,1749431443495,-229.71219022,0.00018769,2]
[365057418,1749431446230,-250.28780978,0.00018769,2]
[365057419,1749431446240,-480.0,0.00018769,2]
[365057420,1749431446249,-480.0,0.00018769,2]
[365057421,1749431446258,-48.6121958,0.00018769,2]
[365057422,1749431446289,-431.3878042,0.00018769,2]
[365057423,1749431446298,-300.0,0.00018769,2]
[365057424,1749431446308,-380.0,0.00018769,2]
[365057425,1749431446318,-380.0,0.00018769,2]
[365057426,1749431446328,-480.0,0.00018769,2]
[365057427,1749431446337,-380.0,0.00018769,2]
[365057428,1749431446347,-460.0,0.00018769,2]
[365057429,1749431446356,-480.0,0.00018769,2]
[365057430,1749431446365,-480.0,0.00018769,2]
[365057431,1749431446374,-1.31939157,0.00018769,2]
[365057432,1749431446385,-286.41655741,0.00018769,2]
[365057433,1749431446394,-518.14074322,0.00018769,2]
[365057434,1749431446403,-480.0,0.00018769,2]
[365057435,1749431446413,-536.92,0.00018769,2]
[365057436,1749431446422,-460.0,0.00018769,2]
[365057437,1749431446431,-380.0,0.00018769,2]
[365057438,1749431446440,-480.0,0.00018769,2]
[365057439,1749431446449,-500.0,0.00018769,2]
[365057440,1749431446459,-480.0,0.00018769,2]
[365057441,1749431446468,-480.0,0.00018769,2]
[365057442,1749431446477,-480.0,0.00018769,2]
[365057443,1749431446486,-480.0,0.00018769,2]
[365057444,1749431446496,-480.0,0.00018769,2]
[365057445,1749431446504,-480.0,0.00018769,2]
[365057446,1749431446514,-480.0,0.00018769,2]
[365057447,1749431446523,-480.0,0.00018769,2]
[365057448,1749431446533,-480.0,0.00018769,2]
[365057449,1749431446543,-645.19,0.00018769,2]
[365057450,1749431446552,-480.0,0.00018769,2]
[365057451,1749431446561,-480.0,0.00018769,2]
[365057452,1749431446571,-480.0,0.00018769,2]
[365057454,1749431446580,-480.0,0.00018769,2]
[365057456,1749431446589,-480.0,0.00018769,2]
[365057457,1749431446598,-480.0,0.00018769,2]
[365057458,1749431446607,-300.0,0.00018769,2]
[365057459,1749431446617,-480.0,0.00018769,2]
[365057460,1749431446626,-480.0,0.00018769,2]
[365057461,1749431446635,-480.0,0.00018769,2]
[365057462,1749431446643,-480.0,0.00018769,2]
[365057463,1749431446652,-206.58213585,0.00018769,2]
[365057464,1749431446661,-480.0,0.00018769,2]
[365057465,1749431446671,-480.0,0.00018769,2]
[365057466,1749431446680,-480.0,0.00018769,2]
[365057467,1749431446689,-313.109841,0.00018769,2]
[365057468,1749431446698,-480.0,0.00018769,2]
[365057469,1749431446710,-460.0,0.00018769,2]
[365057470,1749431446720,-460.0,0.00018769,2]
[365057471,1749431446729,-480.0,0.00018769,2]
[365057472,1749431446738,-460.0,0.00018769,2]
[365057474,1749431446748,-480.0,0.00018769,2]
[365057475,1749431446759,-460.0,0.00018769,2]
[365057476,1749431446768,-480.0,0.00018769,2]
[365057477,1749431446779,-480.0,0.00018769,2]
[365057478,1749431446788,-480.0,0.00018769,2]
[365057479,1749431446798,-480.0,0.00018769,2]
[365057480,1749431446808,-480.0,0.00018769,2]
[365057481,1749431446817,-480.0,0.00018769,2]
[365057482,1749431446827,-480.0,0.00018769,2]
[365057483,1749431446837,-480.0,0.00018769,2]
[365057484,1749431446846,-480.0,0.00018769,2]
[365057485,1749431446856,-209.37284904,0.00018769,2]
[365057486,1749431446866,-480.0,0.00018769,2]
[365057487,1749431446875,-480.0,0.00018769,2]
[365057488,1749431446885,-480.0,0.00018769,2]
[365057489,1749431446894,-129.28587359,0.00018769,2]
[365057490,1749431446918,-350.71412641,0.00018769,2]
[365057491,1749431446928,-358.24,0.00018769,2]
[365057492,1749431446937,-460.0,0.00018769,2]
[365057493,1749431446946,-119.71419044,0.00018769,2]
[365057494,1749431446962,-360.28580956,0.00018769,2]
[365057495,1749431446971,-480.0,0.00018769,2]
[365057496,1749431446982,-480.0,0.00018769,2]
[365057497,1749431446991,-460.0,0.00018769,2]
[365057498,1749431447001,-159.55131677,0.00018769,2]
[365057499,1749431447010,-460.0,0.00018769,2]
[365057500,1749431447020,-266.80423581,0.00018769,2]
[365057501,1749431447029,-461.43012821,0.00018769,2]
[365057502,1749431447041,-507.56672685,0.00018769,2]
[365057503,1749431447051,-467.6079859,0.00018769,2]
[365057504,1749431447060,-460.0,0.00018769,2]
[365057505,1749431447069,-460.0,0.00018769,2]
[365057506,1749431447079,-383.0317012,0.00018769,2]
[365057507,1749431447089,-380.0,0.00018769,2]
[365057508,1749431447099,-467.25294614,0.00018769,2]
[365057509,1749431447108,-480.0,0.00018769,2]
[365057510,1749431447118,-466.55491096,0.00018769,2]
[365057511,1749431447127,-469.00904753,0.00018769,2]
[365057512,1749431447137,-460.0,0.00018769,2]
[365057513,1749431447146,-460.0,0.00018769,2]
[365057514,1749431447156,-460.0,0.00018769,2]
[365057515,1749431447165,-380.0,0.00018769,2]
[365057516,1749431447175,-471.10222062,0.00018769,2]
[365057517,1749431447184,-380.0,0.00018769,2]
[365057518,1749431447193,-460.0,0.00018769,2]
[365057519,1749431447203,-460.0,0.00018769,2]
[365057520,1749431447212,-460.0,0.00018769,2]
[365057521,1749431447222,-474.77211633,0.00018769,2]
[365057522,1749431447231,-469.5588554,0.00018769,2]
[365057523,1749431447240,-466.06559755,0.00018769,2]
[365057524,1749431447249,-423.82764152,0.00018769,2]
[365057525,1749431447259,-464.70826622,0.00018769,2]
[365057526,1749431447268,-480.0,0.00018769,2]
[365057527,1749431447277,-460.0,0.00018769,2]
[365057528,1749431447289,-500.73595437,0.00018769,2]
[365057529,1749431447298,-380.0,0.00018769,2]
[365057530,1749431447308,-380.0,0.00018769,2]
[365057531,1749431447317,-480.0,0.00018769,2]
[365057532,1749431447326,-380.0,0.00018769,2]
[365057533,1749431447335,-460.0,0.00018769,2]
[365057534,1749431447344,-207.4,0.00018837,2]
[365057535,1749431447354,-151.0,0.00018837,2]
[365057536,1749431447363,-460.0,0.00018854,2]
[365057537,1749431447372,-460.0,0.00018854,2]
[365057538,1749431447381,-480.0,0.00018854,2]
[365057539,1749431447391,-383.90477927,0.00018854,2]
[365057540,1749431447400,-460.0,0.00018854,2]
[365057541,1749431447409,-380.0,0.00018854,2]
[365057542,1749431447418,-380.0,0.00018854,2]
[365057543,1749431447427,-379.53640154,0.00018854,2]
[365057544,1749431447436,-480.0,0.00018854,2]
[365057545,1749431447444,-250.0,0.00018854,2]
[365057546,1749431447454,-480.0,0.00018854,2]
[365057547,1749431447463,-480.0,0.00018854,2]
[365057548,1749431447472,-480.0,0.00018854,2]
[365057549,1749431447481,-480.0,0.00018854,2]
[365057550,1749431447491,-480.0,0.00018854,2]
[365057551,1749431447500,-460.0,0.00018854,2]
[365057552,1749431447509,-480.0,0.00018854,2]
[365057553,1749431447518,-480.0,0.00018854,2]
[365057554,1749431447528,-460.0,0.00018854,2]
[365057555,1749431447538,-480.0,0.00018854,2]
[365057556,1749431447547,-480.0,0.00018854,2]
[365057557,1749431447556,-480.0,0.00018854,2]
[365057558,1749431447565,-480.0,0.00018854,2]
[365057559,1749431447575,-480.0,0.00018854,2]
[365057560,1749431447584,-420.0,0.00018854,2]
[365057561,1749431447594,-480.0,0.00018854,2]
[365057562,1749431447603,-480.0,0.00018854,2]
[365057563,1749431447613,-480.0,0.00018854,2]
[365057564,1749431447623,-480.0,0.00018854,2]
[365057565,1749431447632,-292.86424665,0.00018854,2]
[365057566,1749431447645,-187.13575335,0.00018854,2]
[365057567,1749431447654,-460.88224334,0.00018854,2]
[365057568,1749431447664,-480.0,0.00018854,2]
[365057569,1749431447673,-460.0,0.00018854,2]
[365057570,1749431447683,-460.0,0.00018854,2]
[365057571,1749431447692,-467.94292571,0.00018854,2]
[365057572,1749431447701,-480.04536434,0.00018854,2]
[365057573,1749431447714,-465.8005032,0.00018854,2]
[365057574,1749431447723,-460.0,0.00018854,2]
[365057575,1749431447732,-471.49858251,0.00018854,2]
[365057576,1749431447741,-485.86385338,0.00018854,2]
[365057577,1749431447750,-469.60362634,0.00018854,2]
[365057578,1749431447760,-483.10954676,0.00018854,2]
[365057579,1749431447769,-241.90314037,0.00018854,2]
[365057580,1749431447779,-480.0,0.00018854,2]
[365057581,1749431447788,-516.42,0.00018854,2]
[365057582,1749431447797,-460.0,0.00018854,2]
[365057583,1749431447806,-480.0,0.00018854,2]
[365057584,1749431447816,-420.0,0.00018854,2]
[365057585,1749431447825,-480.0,0.00018854,2]
[365057586,1749431447834,-480.0,0.00018854,2]
[365057587,1749431447843,-480.0,0.00018854,2]
[365057588,1749431447852,-480.0,0.00018854,2]
[365057589,1749431447862,-460.0,0.00018854,2]
[365057590,1749431447871,-480.0,0.00018854,2]
[365057591,1749431447880,-3153.07,0.00018854,2]
[365057592,1749431447889,-480.0,0.00018854,2]
[365057593,1749431447898,-12768.04,0.00018854,2]
[365057594,1749431447907,-480.0,0.00018854,2]
[365057595,1749431447916,-480.0,0.00018854,2]
[365057596,1749431447926,-460.0,0.00018854,2]
[365057597,1749431447934,-460.0,0.00018854,2]
[365057598,1749431447943,-465.35873894,0.00018854,2]
[365057599,1749431447953,-386.69561665,0.00018854,2]
[365057600,1749431447962,-460.0,0.00018854,2]
[365057601,1749431447971,-460.0,0.00018854,2]
[365057602,1749431447981,-261.7011731,0.00018854,2]
[365057603,1749431447990,-460.0,0.00018854,2]
[365057604,1749431447999,-480.0,0.00018854,2]
[365057605,1749431448009,-460.0,0.00018854,2]
[365057606,1749431448018,-724.59,0.00018854,2]
[365057607,1749431448028,-480.0,0.00018854,2]
[365057608,1749431448037,-460.0,0.00018854,2]
[365057609,1749431448047,-460.0,0.00018854,2]
[365057610,1749431448057,-480.0,0.00018854,2]
[365057611,1749431448067,-976.0,0.00018854,2]
[365057612,1749431448077,-460.0,0.00018854,2]
[365057613,1749431448086,-480.0,0.00018854,2]
[365057614,1749431448096,-1151.93,0.00018854,2]
[365057615,1749431448106,-1508.31,0.00018854,2]
[365057616,1749431448115,-480.0,0.00018854,2]
[365057617,1749431448125,-598.8119961,0.00018854,2]
[365057618,1749431448135,-460.0,0.00018854,2]
[365057619,1749431448144,-480.0,0.00018854,2]
[365057620,1749431448153,-480.0,0.00018854,2]
[365057621,1749431448163,-480.0,0.00018854,2]
[365057622,1749431448173,-460.0,0.00018854,2]
[365057623,1749431448183,-460.0,0.00018854,2]
[365057624,1749431448193,-501.44,0.00018854,2]
[365057625,1749431448202,-460.0,0.00018854,2]
[365057626,1749431448212,-497.45,0.00018854,2]
[365057627,1749431448221,-462.88767593,0.00018854,2]
[365057628,1749431448230,-342.94749772,0.00018854,2]
[365057629,1749431448239,-709.86,0.00018854,2]
[365057630,1749431448249,-462.27169375,0.00018854,2]
[365057631,1749431448258,-426.6747858,0.00018854,2]
[365057632,1749431448269,-480.0,0.00018854,2]
[365057633,1749431448278,-480.0,0.00018854,2]
[365057634,1749431448288,-480.0,0.00018854,2]
[365057635,1749431448298,-464.96665696,0.00018855,2]
[365057636,1749431448307,-422.31132189,0.00018855,2]
[365057637,1749431448317,-462.81711241,0.00018855,2]
[365057638,1749431448326,-461.77088711,0.00018855,2]
[365057639,1749431448335,-463.11871172,0.00018855,2]
[365057640,1749431448344,-357.91507579,0.00018855,2]
[365057641,1749431448354,-461.68117364,0.00018855,2]
[365057642,1749431448363,-470.3181479,0.00018855,2]
[365057643,1749431448373,-463.18011806,0.00018855,2]
[365057644,1749431448381,-460.0,0.00018855,2]
[365057645,1749431448390,-471.40536193,0.00018855,2]
[365057646,1749431448400,-463.36315274,0.00018855,2]
[365057647,1749431448409,-473.53425796,0.00018855,2]
[365057648,1749431448418,-460.0,0.00018855,2]
[365057649,1749431448427,-464.16321189,0.00018855,2]
[365057650,1749431448436,-460.0,0.00018855,2]
[365057651,1749431448445,-462.03390566,0.00018855,2]
[365057652,1749431448454,-466.35892677,0.00018855,2]
[365057653,1749431448465,-400.20145742,0.00018855,2]
[365057654,1749431448474,-468.80793589,0.00018855,2]
[365057655,1749431448483,-426.75926458,0.00018855,2]
[365057656,1749431448492,-460.0,0.00018855,2]
[365057657,1749431448502,-463.5812472,0.00018855,2]
[365057658,1749431448511,-426.39004824,0.00018855,2]
[365057659,1749431448519,-462.82038065,0.00018855,2]
[365057660,1749431448529,-461.94028363,0.00018855,2]
[365057661,1749431448538,-465.25124343,0.00018855,2]
[365057662,1749431448547,-459.46770163,0.00018855,2]
[365057663,1749431448557,-460.0,0.00018855,2]
[365057664,1749431448565,-460.0,0.00018855,2]
[365057665,1749431448575,-424.19424175,0.00018855,2]
[365057666,1749431448584,-278.03138418,0.00018855,2]
[365057667,1749431448594,-460.0,0.00018855,2]
[365057668,1749431448603,-305.58215556,0.00018855,2]
[365057669,1749431448613,-346.0419926,0.00018855,2]
[365057670,1749431448622,-460.0,0.00018855,2]
[365057671,1749431448631,-464.11621024,0.00018855,2]
[365057672,1749431448641,-460.0,0.00018855,2]
[365057673,1749431448650,-454.72261973,0.00018855,2]
[365057674,1749431448659,-460.0,0.00018855,2]
[365057675,1749431448669,-387.954443,0.00018855,2]
[365057676,1749431448678,-423.31406756,0.00018855,2]
[365057677,1749431448688,-466.33936083,0.00018855,2]
[365057678,1749431448697,-460.0,0.00018855,2]
[365057679,1749431448706,-460.0,0.00018855,2]
[365057680,1749431448720,-370.15406711,0.00018855,2]
[365057681,1749431448729,-420.0,0.00018855,2]
[365057682,1749431448739,-420.0,0.00018855,2]
[365057683,1749431448748,-460.0,0.00018855,2]
[365057684,1749431448758,-480.0,0.00018855,2]
[365057685,1749431448767,-480.0,0.00018855,2]
[365057686,1749431448777,-4412.84281785,0.00018881,2]
[365057687,1749431448787,-183.0,0.000189,2]
[365057688,1749431448798,-1339.70410914,0.000189,2]
[365057689,1749431448810,-150.0,0.00018911,2]
[365057690,1749431448820,-152.53216844,0.00018932,2]
[365057691,1749431448830,-176.71351924,0.00018932,2]
[365057692,1749431448840,-460.0,0.00018932,2]
[365057693,1749431448850,-480.0,0.00018932,2]
[365057694,1749431448860,-480.0,0.00018932,2]
[365057695,1749431448872,-460.0,0.00018932,2]
[365057696,1749431448881,-480.0,0.00018932,2]
[365057697,1749431448890,-460.0,0.00018932,2]
[365057698,1749431448900,-480.0,0.00018932,2]
[365057699,1749431448909,-480.0,0.00018932,2]
[365057700,1749431448918,-460.0,0.00018932,2]
[365057701,1749431448927,-460.0,0.00018932,2]
[365057702,1749431449123,-296.26432272,0.00018932,2]
[365057703,1749431449132,-480.0,0.00018932,2]
[365057704,1749431449141,-480.0,0.00018932,2]
[365057705,1749431449150,-480.0,0.00018932,2]
[365057706,1749431449160,-480.0,0.00018932,2]
[365057707,1749431449169,-480.0,0.00018932,2]
[365057708,1749431449179,-460.0,0.00018932,2]
[365057709,1749431449188,-480.0,0.00018932,2]
[365057710,1749431449198,-503.22,0.00018932,2]
[365057711,1749431449208,-460.0,0.00018932,2]
[365057712,1749431449218,-285.06779483,0.00018932,2]
[365057713,1749431449228,-460.0,0.00018932,2]
[365057714,1749431449237,-480.0,0.00018932,2]
[365057715,1749431449247,-194.61581276,0.00018932,2]
[365057716,1749431449257,-380.0,0.00018932,2]
[365057717,1749431449266,-480.0,0.00018932,2]
[365057718,1749431449275,-480.0,0.00018932,2]
[365057719,1749431449285,-480.0,0.00018932,2]
[365057720,1749431449295,-480.0,0.00018932,2]
[365057721,1749431449304,-460.0,0.00018932,2]
[365057722,1749431449313,-509.69,0.00018932,2]
[365057723,1749431449323,-226.35473929,0.00018932,2]
[365057724,1749431449332,-496.30513246,0.00018932,2]
[365057725,1749431449341,-460.0,0.00018932,2]
[365057726,1749431449350,-480.0,0.00018932,2]
[365057727,1749431449359,-833.69,0.00018932,2]
[365057728,1749431449367,-460.0,0.00018932,2]
[365057729,1749431449377,-480.0,0.00018932,2]
[365057730,1749431449386,-480.0,0.00018932,2]
[365057731,1749431449395,-480.0,0.00018932,2]
[365057732,1749431449404,-480.0,0.00018932,2]
[365057733,1749431449413,-480.0,0.00018932,2]
[365057734,1749431449422,-480.0,0.00018932,2]
[365057735,1749431449431,-460.0,0.00018932,2]
[365057736,1749431449440,-460.0,0.00018932,2]
[365057737,1749431449449,-540.89,0.00018932,2]
[365057738,1749431449458,-480.0,0.00018932,2]
[365057739,1749431449467,-480.0,0.00018932,2]
[365057740,1749431449476,-776.85,0.00018932,2]
[365057741,1749431449486,-480.0,0.00018932,2]
[365057742,1749431449495,-461.81044399,0.00018932,2]
[365057743,1749431449504,-210.813634,0.00018932,2]
[365057744,1749431449513,-480.0,0.00018932,2]
[365057745,1749431449523,-480.0,0.00018932,2]
[365057746,1749431449532,-460.0,0.00018932,2]
[365057747,1749431449541,-460.0,0.00018932,2]
[365057748,1749431449550,-480.0,0.00018932,2]
[365057749,1749431449560,-460.0,0.00018932,2]
[365057750,1749431449569,-219.24,0.00018932,2]
[365057751,1749431449578,-620.13,0.00018932,2]
[365057752,1749431449588,-460.0,0.00018932,2]
[365057753,1749431449597,-480.0,0.00018932,2]
[365057754,1749431449606,-480.0,0.00018932,2]
[365057755,1749431449615,-480.0,0.00018932,2]
[365057756,1749431449624,-480.0,0.00018932,2]
[365057757,1749431449634,-480.0,0.00018932,2]
[365057758,1749431449643,-480.0,0.00018932,2]
[365057759,1749431449652,-480.0,0.00018932,2]
[365057760,1749431449662,-480.0,0.00018932,2]
[365057761,1749431449671,-480.0,0.00018932,2]
[365057762,1749431449680,-480.0,0.00018932,2]
[365057763,1749431449690,-598.91,0.00018932,2]
[365057764,1749431449699,-480.0,0.00018932,2]
[365057765,1749431449709,-480.0,0.00018932,2]
[365057766,1749431449721,-494.04,0.00018932,2]
[365057767,1749431449731,-480.0,0.00018932,2]
[365057768,1749431449740,-480.0,0.00018932,2]
[365057769,1749431449749,-480.0,0.00018932,2]
[365057770,1749431449758,-252.54302506,0.00018932,2]
[365057771,1749431449768,-480.0,0.00018932,2]
[365057772,1749431449777,-426.96,0.00018932,2]
[365057773,1749431449786,-480.0,0.00018932,2]
[365057774,1749431449797,-991.09,0.00018932,2]
[365057775,1749431449806,-480.0,0.00018932,2]
[365057776,1749431449815,-460.0,0.00018932,2]
[365057777,1749431449824,-480.0,0.00018932,2]
[365057778,1749431449833,-302.56400347,0.00018932,2]
[365057779,1749431449842,-480.0,0.00018932,2]
[365057780,1749431449852,-636.81,0.00018932,2]
[365057781,1749431449861,-480.0,0.00018932,2]
[365057782,1749431449870,-480.0,0.00018932,2]
[365057783,1749431449880,-539.28,0.00018932,2]
[365057784,1749431449889,-291.73973839,0.00018932,2]
[365057785,1749431449899,-480.0,0.00018932,2]
[365057786,1749431449908,-480.0,0.00018932,2]
[365057787,1749431449917,-480.0,0.00018932,2]
[365057788,1749431449926,-480.0,0.00018932,2]
[365057789,1749431449936,-480.0,0.00018932,2]
[365057790,1749431449944,-170.27082776,0.00018932,2]
[365057791,1749431449954,-300.0,0.00018932,2]
[365057792,1749431449963,-360.0,0.00018932,2]
[365057793,1749431449972,-480.0,0.00018932,2]
[365057794,1749431449981,-480.0,0.00018932,2]
[365057795,1749431449990,-480.0,0.00018932,2]
[365057796,1749431450000,-477.62914357,0.00018932,2]
[365057797,1749431450008,-480.0,0.00018932,2]
[365057798,1749431450017,-480.0,0.00018932,2]
[365057799,1749431450026,-480.0,0.00018932,2]
[365057800,1749431450035,-480.0,0.00018932,2]
[365057801,1749431450044,-480.0,0.00018932,2]
[365057802,1749431450054,-603.3,0.00018932,2]
[365057803,1749431450063,-480.0,0.00018932,2]
[365057804,1749431450072,-224.25287073,0.00018932,2]
[365057805,1749431450081,-480.0,0.00018932,2]
[365057806,1749431450090,-480.0,0.00018932,2]
[365057807,1749431450099,-573.82,0.00018932,2]
[365057808,1749431450108,-1025.8,0.00018932,2]
[365057809,1749431450117,-507.90676784,0.00018932,2]
[365057810,1749431450127,-480.0,0.00018932,2]
[365057811,1749431450136,-480.0,0.00018932,2]
[365057812,1749431450146,-575.97,0.00018932,2]
[365057813,1749431450155,-523.96,0.00018932,2]
[365057814,1749431450164,-480.0,0.00018932,2]
[365057815,1749431450173,-480.0,0.00018932,2]
[365057816,1749431450182,-480.0,0.00018932,2]
[365057817,1749431450191,-480.0,0.00018932,2]
[365057818,1749431450201,-531.18,0.00018932,2]
[365057819,1749431450211,-480.0,0.00018932,2]
[365057820,1749431450220,-480.0,0.00018932,2]
[365057821,1749431450231,-480.0,0.00018932,2]
[365057822,1749431450240,-363.95540668,0.00018932,2]
[365057823,1749431450249,-1128.21,0.00018932,2]
[365057824,1749431450258,-480.0,0.00018932,2]
[365057825,1749431450267,-480.0,0.00018932,2]
[365057826,1749431450276,-480.0,0.00018932,2]
[365057827,1749431450285,-460.0,0.00018932,2]
[365057828,1749431450294,-480.0,0.00018932,2]
[365057829,1749431450304,-480.0,0.00018932,2]
[365057830,1749431450314,-500.22,0.00018932,2]
[365057831,1749431450323,-480.0,0.00018932,2]
[365057832,1749431450332,-480.0,0.00018932,2]
[365057833,1749431450341,-466.38477155,0.00018932,2]
[365057834,1749431450350,-480.0,0.00018932,2]
[365057835,1749431450361,-380.0,0.00018932,2]
[365057836,1749431450371,-480.0,0.00018932,2]
[365057837,1749431450380,-480.0,0.00018932,2]
[365057838,1749431450390,-480.0,0.00018932,2]
[365057839,1749431450399,-480.0,0.00018932,2]
[365057840,1749431450408,-460.0,0.00018932,2]
[365057841,1749431450417,-480.0,0.00018932,2]
[365057842,1749431450426,-480.0,0.00018932,2]
[365057843,1749431450436,-469.10960382,0.00018932,2]
[365057844,1749431450446,-480.0,0.00018932,2]
[365057845,1749431450456,-469.52,0.00018932,2]
[365057846,1749431450466,-480.0,0.00018932,2]
[365057847,1749431450475,-500.0,0.00018932,2]